bitfinex-derivatives/quotes_ETHF0:USTF0_20220106
["timestamp","ask_amount","ask_price","bid_price","bid_amount"]
[1641479966322,2.00479,3424.2,3422.6,1.5]
[1641479966520,2.00479,3424.2,3422.1,12.68]
[1641479966719,2.00479,3424.2,3422.6,1.5]
[1641479966919,2.00479,3424.6,3423.0,4.00958]
[1641479967119,2.00479,3424.6,3423.0,5.62248749]
[1641479967921,1.4999,3424.5,3423.0,5.62248749]
[1641479968119,3.4621875,3423.1,3423.0,5.46919749]
[1641479968320,3.4621875,3423.1,3423.0,4.00958]
[1641479968721,3.8593695,3423.1,3423.0,4.00958]
[1641479968921,3.8593695,3423.1,3423.0,2.00479]
[1641479969122,3.0022775,3423.1,3423.0,2.15808]
[1641479969333,3.0022775,3423.1,3423.0,3.61797238]
[1641479969921,3.0022775,3423.1,3423.0,2.15808]
[1641479970723,3.0022775,3423.1,3423.0,2.00479]
[1641479971523,3.3994595,3423.1,3423.0,2.00479]
[1641479971726,3.8593695,3423.1,3423.0,2.00479]
[1641479971923,3.3994595,3423.1,3423.0,2.00479]
[1641479972123,3.0022775,3423.1,3423.0,2.00479]
[1641479972723,3.0022775,3423.1,3423.0,3.61790205]
[1641479973325,3.0022775,3423.1,3423.0,3.46461205]
[1641479973526,0.75380402,3423.1,3423.0,3.46461205]
[1641479974329,1.4999,3423.4,3423.3,2.16895143]
[1641479974529,1.95981,3423.4,3423.3,2.16895143]
[1641479974727,2.356992,3423.4,3423.3,2.16895143]
[1641479974927,2.741464,3423.4,3423.0,2.00479]
[1641479975127,1.4999,3423.1,3423.0,2.00479]
[1641479975328,0.857092,3423.1,3423.0,2.00479]
[1641479976029,0.397182,3423.1,3423.0,2.00479]
[1641479976228,0.857092,3423.1,3423.0,2.00479]
[1641479976427,0.397182,3423.1,3423.0,2.00479]
[1641479977228,0.397182,3423.1,3423.0,2.15808]
[1641479977828,0.397182,3423.1,3423.0,3.65808]
[1641479978028,0.397182,3423.3,3423.0,3.61794893]
[1641479978228,0.45991,3423.2,3423.0,2.00479]
[1641479978429,1.90480287,3423.5,3423.0,2.00479]
[1641479978630,0.397182,3423.4,3423.0,2.00479]
[1641479979229,0.397182,3423.4,3422.5,2.00479]
[1641479979532,0.397182,3423.4,3421.3,1.5]
[1641479979730,0.397182,3423.4,3421.8,1.4603934]
[1641479980029,0.397182,3423.4,3422.1,1.5]
[1641479980230,0.397182,3423.4,3422.2,1.5]
[1641479980429,0.397182,3423.4,3421.6,12.68]
[1641479980630,9.99999999,3422.7,3421.4,0.619]
[1641479980829,1.46103351,3422.3,3420.7,1.5]
[1641479981031,2.00479,3422.8,3422.0,2.00479]
[1641479981231,0.397182,3422.7,3421.7,2.00479]
[1641479981629,0.397182,3422.7,3421.7,3.50479]
[1641479982031,0.397182,3422.7,3421.7,2.00479]
[1641479982231,0.397182,3422.7,3421.7,3.50479]
[1641479982433,0.397182,3422.7,3421.7,3.37979006]
[1641479982633,2.00479,3422.8,3422.6,1.5]
[1641479982831,2.00479,3422.8,3422.7,0.15329]
[1641479983032,13.90959286,3423.5,3422.4,2.00479]
[1641479983633,26.58959286,3423.5,3422.4,2.00479]
[1641479983832,18.05009718,3423.5,3422.4,2.00479]
[1641479984032,5.37009718,3423.5,3422.4,2.00479]
[1641479985233,3.90959287,3423.5,3422.7,1.5]
[1641479985431,0.397182,3423.4,3422.8,0.384472]
[1641479985632,0.397182,3423.4,3422.4,2.00479]
[1641479987235,0.397182,3423.4,3421.7,1.87979006]
[1641479987734,9.99999999,3422.9,3421.7,1.87979006]
[1641479988337,1.46056831,3423.4,3421.7,1.87979006]
[1641479988736,12.68,3423.3,3421.7,1.87979006]
[1641479988937,1.46056831,3423.4,3421.7,1.87979006]
[1641479989137,2.00479,3422.5,3421.7,1.87979006]
[1641479989337,0.397182,3422.4,3421.8,0.384472]
[1641479989740,0.397182,3422.4,3421.8,0.781654]
[1641479990440,0.397182,3422.4,3421.8,0.384472]
[1641479990839,0.397182,3422.4,3421.7,1.87979006]
[1641479991043,0.41738485,3422.5,3421.7,1.87979006]
[1641479991239,1.8783095,3422.5,3421.7,1.87979006]
[1641479991441,14.5583095,3422.5,3421.7,1.87979006]
[1641479991640,22.67999999,3422.4,3420.1,1.5]
[1641479992139,22.67999999,3422.4,3420.4,1.5]
[1641479992343,1.4610698,3422.2,3420.9,1.5]
[1641479992741,1.4610698,3422.2,3420.2,14.1410698]
[1641479992941,1.4610698,3422.2,3420.3,1.5]
[1641479993142,2.00479,3421.4,3421.3,0.69139362]
[1641479993344,2.4647,3421.4,3421.3,0.69139362]
[1641479993542,2.00479,3421.4,3421.3,0.69139362]
[1641479994143,2.4647,3421.4,3421.3,0.69139362]
[1641479994346,2.00479,3421.4,3421.3,0.15329]
[1641479994947,2.00479,3421.4,3421.3,1.65329]
[1641479995144,2.00479,3421.7,3421.3,1.65329]
[1641479995145,2.00479,3422.1,3421.3,3.65808]
[1641479995344,2.00479,3422.1,3421.3,2.15808]
[1641479995545,2.00479,3422.1,3421.7,1.5]
[1641479995744,2.00479,3422.4,3421.8,0.384472]
[1641479995944,2.00479,3422.4,3421.8,1.5]
[1641479996545,2.00479,3422.4,3421.6,1.46048085]
[1641479996846,2.00479,3422.4,3422.0,0.71531856]
[1641479998247,2.00479,3422.4,3422.2,0.71531856]
[1641479998446,0.45991,3422.3,3422.2,0.71531856]
[1641479998647,0.45991,3422.3,3421.9,1.3857042]
[1641479999548,2.00479,3422.4,3421.9,1.3857042]
[1641479999748,2.00479,3422.4,3421.9,0.92045636]
[1641479999950,2.00479,3422.4,3421.8,2.389262]
[1641480000753,2.00479,3422.4,3421.9,0.46513602]
[1641480000949,2.00479,3422.9,3422.3,1.5]
[1641480001148,2.00479,3422.9,3422.3,2.00479]
[1641480001958,2.00479,3422.9,3422.4,0.46513602]
[1641480002755,2.00479,3422.9,3422.4,0.86231802]
[1641480003155,2.00479,3422.9,3422.8,1.5]
[1641480003356,2.00479,3422.9,3422.8,2.050472]
[1641480003856,2.00479,3422.9,3422.8,0.550472]
[1641480004358,2.00479,3422.9,3422.8,1.01560802]
[1641480004556,2.00479,3422.9,3422.8,0.46513602]
[1641480004757,0.384472,3422.8,3422.2,1.44200223]
[1641480004956,1.5,3422.6,3422.2,1.44200223]
[1641480005159,2.00479,3422.3,3422.2,1.44200223]
[1641480005358,3.9647,3422.3,3421.4,5.00896132]
[1641480005559,2.4647,3422.3,3421.1,9.3882792]
[1641480005757,2.4647,3422.3,3421.5,0.62016009]
[1641480005957,2.00479,3422.3,3421.5,0.62016009]
[1641480006657,2.00479,3422.3,3421.1,6.08205951]
[1641480006859,2.00479,3422.3,3421.1,2.00479]
[1641480007358,4.00958,3422.3,3421.1,2.00479]
[1641480007557,5.50958,3422.3,3421.1,2.00479]
[1641480008158,4.00958,3422.3,3421.1,2.00479]
[1641480008559,4.00958,3422.3,3421.1,3.46547778]
[1641480008758,4.00958,3422.3,3421.4,1.46056617]
[1641480008961,1.5,3421.5,3421.0,1.79887472]
[1641480009162,3.50479,3421.1,3420.2,3.30621969]
[1641480009361,1.5,3420.7,3420.5,2.27839479]
[1641480009560,0.45991,3420.6,3420.5,2.27839479]
[1641480009960,0.45991,3420.6,3420.5,1.18669479]
[1641480010562,0.45991,3420.6,3420.5,9.479e-05]
[1641480010763,1.95991,3420.6,3420.2,3.00417132]
[1641480010961,1.95991,3420.6,3419.9,3.30621969]
[1641480011162,2.00479,3420.0,3419.1,2.00479]
[1641480012562,1.51920695,3420.0,3418.7,2.00479]
[1641480012764,1.51920695,3420.0,3419.2,1.5]
[1641480013963,14.19920695,3420.0,3418.7,2.00479]
[1641480014163,1.46203105,3419.9,3418.3,3.30621969]
[1641480014562,12.68,3419.8,3419.6,1.19687317]
[1641480014762,13.524382,3419.8,3419.6,1.19687317]
[1641480014961,13.524382,3419.8,3418.3,3.30621969]
[1641480015163,4.00958,3418.4,3418.3,3.30621969]
[1641480015565,4.46949,3418.4,3418.3,3.30621969]
[1641480016363,4.46949,3418.4,3417.6,3.30621969]
[1641480016663,13.064472,3418.3,3417.6,3.30621969]
[1641480017264,4.00958,3417.7,3417.6,3.30621969]
[1641480017465,4.46949,3417.7,3417.6,3.30621969]
[1641480018663,17.14949,3417.7,3417.2,2.40319338]
[1641480018863,4.00958,3417.7,3417.2,2.80037538]
[1641480019266,2.00479,3417.7,3417.2,2.80037538]
[1641480019463,2.00479,3417.7,3417.6,1.5]
[1641480019664,2.00479,3417.7,3417.6,3.550472]
[1641480019963,0.74331777,3418.4,3417.6,3.51259711]
[1641480020165,0.74331777,3418.4,3417.6,2.050472]
[1641480020567,0.74331777,3418.4,3417.6,1.65329]
[1641480020771,0.99071545,3418.7,3418.3,4.46183656]
[1641480020968,1.85803362,3419.5,3418.6,3.0]
[1641480021166,1.85803362,3419.5,3419.4,1.5]
[1641480021368,2.00479,3419.9,3419.4,2.050472]
[1641480021567,2.00479,3419.9,3419.8,1.5]
[1641480022167,2.00479,3419.9,3419.8,1.65329]
[1641480022768,0.58385047,3421.1,3419.8,3.550472]
[1641480022968,0.58385047,3421.1,3420.3,1.5]
[1641480023170,0.58385047,3421.1,3420.5,2.00479]
[1641480023373,0.58385047,3421.1,3421.0,1.5]
[1641480023572,1.04376047,3421.1,3421.0,1.5]
[1641480023769,1.42823247,3421.1,3421.0,1.5]
[1641480024169,0.844382,3421.1,3421.0,1.5]
[1641480024369,0.844382,3421.1,3420.5,2.00479]
[1641480024569,0.844382,3421.1,3420.7,1.5]
[1641480024769,0.844382,3421.1,3420.5,3.50479]
[1641480025170,0.844382,3421.1,3420.7,1.5]
[1641480025569,1.07799215,3421.1,3420.7,1.5]
[1641480026771,0.23361015,3421.0,3420.7,1.5]
[1641480027370,2.00479,3420.8,3420.7,1.5]
[1641480027571,2.4647,3420.8,3420.7,1.5]
[1641480027771,2.4647,3420.8,3420.2,2.00479]
[1641480027972,2.4647,3420.8,3420.2,3.50479]
[1641480028172,2.4647,3420.8,3420.4,1.5]
[1641480029175,2.00479,3420.8,3420.4,1.5]
[1641480030376,2.00479,3420.8,3420.7,1.5]
[1641480030579,2.4647,3420.8,3420.7,1.5]
[1641480030977,2.00479,3420.8,3420.7,1.65329]
[1641480031778,2.00479,3420.8,3420.7,2.11857019]
[1641480032778,2.00479,3420.8,3420.7,1.96528019]
[1641480032978,2.00479,3420.8,3420.7,2.11857019]
[1641480033382,2.00479,3420.8,3420.7,3.0769594]
[1641480034982,2.00479,3420.8,3420.7,2.9236694]
[1641480035182,2.00479,3420.8,3420.7,3.0769594]
[1641480035383,2.00479,3420.8,3420.7,2.11857019]
[1641480035582,2.4647,3420.8,3420.7,1.96528019]
[1641480035984,2.00479,3420.8,3420.7,2.11857019]
[1641480036186,2.00479,3420.8,3420.7,1.96528019]
[1641480036785,2.00479,3420.8,3420.7,2.11857019]
[1641480037385,2.4647,3420.8,3420.7,1.96528019]
[1641480037587,2.00479,3420.8,3420.7,0.46528019]
[1641480038488,2.00479,3420.8,3420.7,1.4236694]
[1641480038489,2.4647,3420.8,3420.7,1.4236694]
[1641480039587,2.00479,3420.8,3420.7,1.5769594]
[1641480039789,2.00479,3420.8,3420.7,2.9236694]
[1641480039989,2.00479,3420.8,3420.6,0.46528019]
[1641480040593,0.45991,3420.7,3420.6,0.46528019]
[1641480041192,0.45991,3420.7,3420.5,2.69999138]
[1641480041494,14.68479,3420.6,3420.5,2.69999138]
[1641480041790,2.00479,3420.6,3420.5,2.69999138]
[1641480041990,3.9647,3420.6,3420.0,1.79998707]
[1641480042191,3.9647,3420.6,3420.1,1.19972768]
[1641480042192,1.46187717,3420.3,3420.1,1.19972768]
[1641480042393,2.99529842,3420.6,3420.2,0.15329]
[1641480042592,2.99529842,3420.6,3420.1,1.19972768]
[1641480043592,0.74448797,3420.4,3419.9,1.43967321]
[1641480043793,0.74448797,3420.4,3419.9,1.83685521]
[1641480044193,0.74448797,3420.4,3419.9,1.43967321]
[1641480044392,0.384472,3420.3,3419.9,1.43967321]
[1641480044793,0.384472,3420.3,3419.7,1.79998707]
[1641480045793,0.384472,3420.3,3419.5,2.00479]
[1641480046693,1.5,3419.6,3419.2,0.71380851]
[1641480046896,1.5,3419.3,3418.4,0.62082667]
[1641480047096,1.46238811,3419.1,3418.4,0.62082667]
[1641480047394,2.00479,3418.5,3418.4,0.62082667]
[1641480047595,2.4647,3418.5,3418.4,0.62082667]
[1641480047794,2.00479,3418.5,3418.4,0.62082667]
[1641480048195,2.00479,3418.5,3418.1,1.79998707]
[1641480048697,2.00479,3418.5,3417.6,1.46217428]
[1641480048698,14.68479,3418.5,3417.6,1.46217428]
[1641480049099,2.00479,3418.5,3417.6,1.46217428]
[1641480049696,2.00479,3418.5,3417.5,2.00479]
[1641480050597,12.68,3418.6,3417.5,2.00479]
[1641480050797,1.5,3418.7,3417.5,2.00479]
[1641480051401,2.00479,3417.9,3417.2,1.19326767]
[1641480051604,2.00479,3417.9,3417.3,0.781654]
[1641480052603,0.0184578,3417.9,3417.3,0.781654]
[1641480053406,2.00479,3418.3,3417.5,2.00479]
[1641480053808,0.384472,3418.2,3417.5,2.00479]
[1641480054409,13.064472,3418.2,3417.1,2.00479]
[1641480054610,1.5,3417.2,3416.9,1.19326767]
[1641480054809,15.64346675,3417.0,3416.2,2.40319338]
[1641480055009,14.14346675,3417.0,3416.8,0.792249]
[1641480055208,13.43833671,3416.9,3416.8,0.792249]
[1641480055410,15.44312671,3416.9,3416.6,1.4306988]
[1641480055616,0.45991,3416.8,3416.6,1.4306988]
[1641480055812,0.384472,3416.7,3416.6,1.4306988]
[1641480056315,0.384472,3416.7,3416.3,1.79998707]
[1641480056511,4.0,3417.7,3416.3,1.79998707]
[1641480056512,5.5,3417.7,3416.3,1.79998707]
[1641480056715,1.46292295,3417.8,3416.2,0.384472]
[1641480056913,1.46291653,3417.9,3416.2,1.84726013]
[1641480057113,1.46291653,3417.9,3416.3,1.5]
[1641480057314,0.99050842,3418.1,3416.2,0.384472]
[1641480057515,2.00479,3417.6,3416.8,2.00479]
[1641480057914,0.384472,3417.5,3416.4,2.00479]
[1641480058816,13.064472,3417.5,3416.4,2.00479]
[1641480059416,2.00479,3417.0,3416.4,2.00479]
[1641480060615,1.46330828,3416.9,3416.4,2.00479]
[1641480060816,0.384472,3416.8,3416.4,2.00479]
[1641480061419,0.384472,3416.8,3415.9,2.00479]
[1641480062817,2.00479,3417.0,3415.9,2.00479]
[1641480062818,2.00479,3417.0,3416.0,1.5]
[1641480063520,2.00479,3417.0,3415.9,4.00958]
[1641480064819,2.00479,3417.0,3416.2,1.5]
[1641480065019,2.00479,3417.0,3416.3,0.781654]
[1641480065420,2.00479,3417.0,3416.4,1.5]
[1641480065721,2.00479,3417.0,3416.6,1.46260414]
[1641480066120,2.00479,3417.0,3416.7,0.397182]
[1641480066319,2.00479,3417.0,3416.8,0.15329]
[1641480066921,2.00479,3417.0,3416.8,0.550472]
[1641480067519,1.46248221,3418.9,3416.9,2.96248221]
[1641480067720,0.99050842,3419.0,3417.6,1.5]
[1641480067920,0.7387496,3418.7,3417.0,1.46229402]
[1641480068220,0.7387496,3418.7,3417.8,1.46211656]
[1641480069121,0.7387496,3418.7,3417.0,31.37515705]
[1641480069321,0.7387496,3418.7,3417.0,0.94655705]
[1641480069525,2.00479,3418.4,3417.6,2.00479]
[1641480069723,0.384472,3418.3,3417.7,0.397182]
[1641480070123,0.384472,3418.3,3417.7,0.781654]
[1641480070324,0.384472,3418.3,3417.6,2.00479]
[1641480070523,0.384472,3418.3,3417.3,2.00479]
[1641480070723,1.84721092,3418.3,3417.2,0.71621423]
[1641480070927,1.84721092,3418.3,3418.2,0.71621423]
[1641480071127,2.30712092,3418.3,3418.2,0.71621423]
[1641480071323,14.98712092,3418.3,3418.2,0.71621423]
[1641480072427,15.6079472,3418.3,3417.7,0.71621423]
[1641480072627,17.1079472,3418.3,3417.7,0.71621423]
[1641480073027,15.6079472,3418.3,3417.7,0.71621423]
[1641480073227,1.46302996,3417.8,3417.5,0.95523319]
[1641480073431,12.68,3417.6,3417.4,0.96284337]
[1641480073627,0.384472,3417.5,3417.4,0.96284337]
[1641480074228,0.844382,3417.5,3417.4,0.96284337]
[1641480075034,0.45991,3417.5,3417.2,0.781654]
[1641480075231,0.45991,3417.5,3416.9,0.96284337]
[1641480075632,2.00479,3417.2,3417.0,0.397182]
[1641480075832,2.00479,3417.2,3417.1,0.15329]
[1641480076233,1.46283521,3418.0,3417.1,0.15329]
[1641480076433,1.22363821,3419.8,3417.2,12.68]
[1641480076633,9.99999999,3419.5,3416.8,1.5]
[1641480076833,1.46265762,3418.5,3416.8,1.5]
[1641480077434,2.96265762,3418.5,3416.8,1.5]
[1641480077635,1.5,3417.9,3416.5,2.62379]
[1641480077834,1.5,3417.9,3416.5,2.00479]
[1641480078138,1.5,3417.1,3416.5,2.00479]
[1641480078334,0.384472,3417.0,3415.5,0.96284337]
[1641480078733,1.46346675,3416.6,3415.5,0.96284337]
[1641480078934,1.46346675,3416.6,3415.1,31.2874]
[1641480079135,1.46346675,3416.9,3414.9,1.5]
[1641480079334,0.384472,3417.0,3414.9,1.5]
[1641480079538,2.00479,3416.4,3415.6,2.00479]
[1641480079738,2.00479,3416.4,3415.7,0.781654]
[1641480080937,0.384472,3416.3,3415.7,0.781654]
[1641480081338,0.384472,3416.3,3415.7,0.397182]
[1641480081538,0.384472,3416.3,3415.6,2.00479]
[1641480083041,0.384472,3416.3,3415.6,2.00279]
[1641480083340,1.5,3416.2,3415.6,2.00279]
[1641480083540,1.46369809,3416.0,3415.6,2.00279]
[1641480085147,0.384472,3416.3,3415.6,2.00279]
[1641480085845,0.384472,3416.3,3414.0,0.619]
[1641480086046,1.5,3415.7,3413.9,1.46376022]
[1641480086246,0.619,3415.6,3413.9,1.46376022]
[1641480086446,1.46397452,3415.4,3413.4,1.46397452]
[1641480086645,1.46418244,3414.9,3413.2,33.3963]
[1641480086847,1.46418244,3414.9,3413.1,0.96284337]
[1641480087146,12.68,3415.2,3413.1,0.96284337]
[1641480087348,12.68,3415.2,3412.9,1.46418672]
[1641480087349,1.46418672,3414.9,3412.9,1.46418672]
[1641480087547,2.00479,3414.8,3414.0,2.00479]
[1641480087746,0.384472,3414.7,3414.0,2.00479]
[1641480087946,1.884472,3414.7,3413.6,2.00479]
[1641480088152,12.68,3414.3,3412.7,64.6218]
[1641480088446,1.46459631,3413.9,3412.6,0.96284337]
[1641480088847,1.46459631,3413.9,3412.1,33.2288]
[1641480089047,1.46459631,3413.9,3412.0,1.46459631]
[1641480089246,1.46481514,3413.4,3411.9,0.96284337]
[1641480089447,1.46481514,3413.4,3411.9,2.46284337]
[1641480089648,1.46481514,3413.4,3412.8,2.00479]
[1641480089851,1.84928714,3413.4,3412.8,2.00479]
[1641480090850,1.84928714,3413.4,3411.7,32.2407]
[1641480091052,15.14828714,3413.4,3411.7,32.2407]
[1641480091252,1.5,3413.1,3411.7,32.2407]
[1641480091459,1.46523152,3412.5,3411.1,0.96284337]
[1641480091653,14.14523152,3412.8,3412.0,2.00479]
[1641480091654,3.50479,3412.8,3412.0,2.00479]
[1641480091853,0.384472,3412.7,3412.0,2.00479]
[1641480092955,1.4652852,3412.3,3411.7,2.00479]
[1641480093752,3.4700752,3412.3,3411.7,2.00479]
[1641480093954,2.00479,3412.3,3411.7,2.00479]
[1641480094151,1.4654849,3411.9,3411.7,2.00479]
[1641480094353,1.8499569,3411.9,3411.7,2.00479]
[1641480095154,0.45991,3411.8,3411.7,2.00479]
[1641480095756,2.00479,3412.3,3411.7,2.15808]
[1641480096254,12.68,3413.6,3411.8,0.397182]
[1641480096456,1.46503189,3412.9,3411.8,0.397182]
[1641480096655,0.619,3413.1,3412.4,1.77190664]
[1641480096856,0.619,3413.1,3411.7,2.00479]
[1641480096857,1.46493745,3413.1,3411.7,2.00479]
[1641480097657,2.00479,3413.0,3411.7,2.00479]
[1641480098257,2.00479,3413.0,3411.9,1.5]
[1641480098459,2.00479,3413.0,3412.3,1.5]
[1641480098759,1.46453196,3414.1,3412.4,1.69536334]
[1641480099759,1.46453196,3414.1,3413.7,2.00479]
[1641480099962,0.384472,3414.0,3413.7,2.00479]
[1641480100160,0.45991,3413.9,3413.7,2.00479]
[1641480100361,0.384472,3414.0,3413.7,2.00479]
[1641480100964,0.45991,3413.9,3413.7,2.00479]
[1641480102167,1.46474648,3413.8,3413.7,2.00479]
[1641480102366,0.45991,3413.9,3413.7,2.00479]
[1641480105171,1.46465852,3413.8,3413.7,2.00479]
[1641480105576,13.13991,3413.9,3413.7,2.00479]
[1641480105769,1.46465852,3413.8,3413.7,2.00479]
[1641480106371,0.45991,3413.9,3413.7,2.00479]
[1641480107471,1.46494604,3413.8,3412.9,0.71477573]
[1641480107870,1.46494604,3413.8,3413.2,2.00479]
[1641480109770,1.46494604,3413.8,3413.2,2.401972]
[1641480109973,1.46494604,3413.8,3413.2,2.786444]
[1641480111274,0.384472,3414.0,3413.2,2.786444]
[1641480111873,0.384472,3414.0,3413.7,2.00479]
[1641480112071,0.384472,3414.0,3413.8,0.550472]
[1641480112272,0.384472,3414.0,3413.8,0.397182]
[1641480112472,0.384472,3414.0,3413.7,2.00479]
[1641480112874,0.45991,3413.9,3413.7,2.00479]
[1641480113373,0.384472,3414.0,3413.7,2.00479]
[1641480113674,1.46454269,3414.1,3413.8,0.397182]
[1641480113877,0.73420079,3415.1,3413.9,2.389262]
[1641480114275,1.46424247,3414.8,3413.9,2.389262]
[1641480115477,1.5,3415.2,3413.9,2.00479]
[1641480115776,12.68,3415.4,3414.7,2.00479]
[1641480115977,1.5,3415.2,3414.7,2.00479]
[1641480116177,1.4642682,3414.8,3414.7,2.00479]
[1641480116379,0.384472,3415.3,3414.7,2.00479]
[1641480116578,4.23899079,3415.5,3414.7,2.00479]
[1641480116579,0.73420079,3415.4,3414.7,2.00479]
[1641480117380,0.73420079,3415.4,3414.7,2.401972]
[1641480117782,0.73420079,3415.4,3415.3,2.00479]
[1641480117980,0.844382,3415.4,3415.3,2.00479]
[1641480118182,0.844382,3415.4,3413.4,30.743]
[1641480118681,1.46411384,3415.1,3413.5,0.619]
[1641480118980,18.18,3415.3,3413.4,30.743]
[1641480119182,16.68,3415.3,3413.3,31.37957573]
[1641480119481,0.619,3415.1,3413.3,30.6648]
[1641480119681,1.46449121,3414.2,3413.3,30.6648]
[1641480119882,1.46449121,3414.2,3413.4,2.00479]
[1641480120081,0.384472,3414.1,3413.4,2.00479]
[1641480120281,1.46472503,3413.6,3413.4,2.00479]
[1641480120487,0.45991,3413.5,3413.2,0.71477573]
[1641480120881,1.92469725,3413.5,3413.2,0.71477573]
[1641480121084,1.92469725,3413.5,3413.0,2.00479]
[1641480121283,1.5,3413.2,3412.7,0.71477573]
[1641480121481,1.46507052,3413.1,3412.7,0.71477573]
[1641480121883,2.00479,3413.1,3412.8,0.384472]
[1641480122082,0.45991,3413.0,3412.8,0.384472]
[1641480122381,0.45991,3413.0,3412.7,0.71477573]
[1641480122985,2.00479,3413.1,3412.8,0.397182]
[1641480123181,1.46467139,3413.8,3412.3,3.50479]
[1641480123381,0.73420079,3414.4,3412.4,1.5]
[1641480123580,1.46448263,3414.2,3412.4,1.5]
[1641480123782,3.46927263,3414.2,3413.4,2.00479]
[1641480124182,0.384472,3414.1,3413.4,2.00479]
[1641480125084,0.384472,3414.1,3413.4,2.401972]
[1641480125288,0.384472,3414.1,3413.4,2.00479]
[1641480126084,0.384472,3414.1,3413.4,2.389262]
[1641480126285,0.384472,3414.1,3413.4,2.00479]
[1641480127586,0.384472,3414.1,3413.4,2.401972]
[1641480127786,1.46456843,3414.0,3413.4,2.401972]
[1641480128188,2.00479,3414.2,3413.5,0.384472]
[1641480128388,2.00479,3414.6,3413.6,0.397182]
[1641480128587,3.46908178,3414.6,3413.6,0.397182]
[1641480128788,2.00479,3414.6,3413.6,0.397182]
[1641480129391,14.68479,3414.6,3413.6,0.397182]
[1641480129589,2.00479,3414.6,3413.6,0.397182]
[1641480129788,2.00479,3414.6,3414.0,2.00479]
[1641480129988,0.384472,3414.5,3414.0,2.00479]
[1641480130990,0.384472,3414.5,3413.5,0.384472]
[1641480131189,1.46441401,3414.4,3413.5,0.384472]
[1641480131790,2.00479,3414.2,3413.5,0.384472]
[1641480132190,2.00479,3414.2,3413.4,2.00479]
[1641480132990,2.00479,3414.2,3413.5,0.781654]
[1641480133591,2.00479,3414.2,3413.4,2.00479]
[1641480133791,2.62379,3414.2,3412.6,0.71477573]
[1641480133991,12.68,3414.3,3412.6,0.71477573]
[1641480134191,0.384472,3414.5,3412.6,0.71477573]
[1641480134192,1.46477866,3413.5,3412.6,0.71477573]
[1641480134392,1.46468856,3413.7,3412.6,0.71477573]
[1641480134592,1.5,3414.9,3412.6,0.71477573]
[1641480134792,1.46450408,3414.2,3412.6,0.71477573]
[1641480135093,1.46450408,3414.2,3412.4,2.00479]
[1641480135695,1.46450408,3414.2,3412.5,1.5]
[1641480135893,2.00479,3413.8,3413.0,2.00479]
[1641480136094,2.00479,3413.8,3413.1,0.781654]
[1641480136695,1.46450408,3414.2,3413.1,0.781654]
[1641480136896,2.19843468,3414.8,3413.1,0.781654]
[1641480137099,0.73420079,3414.8,3413.2,0.619]
[1641480137297,1.4643025,3414.6,3413.2,0.619]
[1641480137498,1.4643025,3414.6,3413.3,0.71477573]
[1641480137700,0.73420079,3415.2,3413.3,0.71477573]
[1641480137900,2.00479,3414.8,3414.0,2.00479]
[1641480138102,0.384472,3414.7,3414.0,2.00479]
[1641480138501,0.384472,3414.7,3414.1,0.397182]
[1641480139900,2.00479,3414.8,3414.1,0.397182]
[1641480140705,2.00479,3414.8,3414.1,1.897182]
[1641480142106,2.00479,3414.8,3414.4,1.5]
[1641480142402,2.00479,3415.2,3414.5,0.397182]
[1641480142602,2.00479,3415.2,3414.0,2.389262]
[1641480143002,2.00479,3415.2,3414.1,0.71721761]
[1641480144002,2.00479,3415.8,3414.7,2.00479]
[1641480144203,0.7405994,3415.9,3415.2,1.5]
[1641480144403,0.98746586,3416.2,3414.7,4.08720321]
[1641480144404,0.7405994,3416.1,3415.3,0.781654]
[1641480144603,0.7405994,3416.1,3415.0,1.5]
[1641480146004,0.7405994,3415.6,3415.4,1.19536268]
[1641480146206,0.7405994,3415.6,3415.5,0.550472]
[1641480146403,0.7405994,3415.6,3415.5,0.934944]
[1641480147807,0.7405994,3415.7,3415.5,2.53657248]
[1641480148007,0.7405994,3415.7,3415.6,4.00958]
[1641480149010,0.7405994,3415.7,3415.6,4.4158458]
[1641480150110,0.7405994,3415.9,3415.6,5.61120848]
[1641480150311,0.7405994,3415.9,3415.7,0.550472]
[1641480151011,0.7405994,3415.9,3415.8,0.4062658]
[1641480151912,0.98746586,3416.2,3415.8,0.4062658]
[1641480152111,0.98746586,3416.1,3415.8,0.4062658]
[1641480152312,0.98746586,3416.1,3415.9,0.550472]
[1641480153613,1.23433233,3416.4,3415.9,0.550472]
[1641480153614,1.23433233,3416.4,3415.9,2.050472]
[1641480153814,1.85149849,3416.9,3416.3,1.5]
[1641480154017,0.739339,3417.1,3416.8,4.00958]
[1641480154212,0.739339,3417.1,3416.9,0.15329]
[1641480154415,0.739339,3417.1,3417.0,0.397182]
[1641480155415,1.23223166,3417.7,3417.0,0.397182]
[1641480155616,1.47867799,3417.9,3417.1,1.15648101]
[1641480155814,0.7391253,3418.2,3417.1,1.15648101]
[1641480155815,0.7391253,3418.2,3417.2,0.397182]
[1641480156015,0.7391253,3418.2,3418.1,4.00958]
[1641480156414,0.7391253,3418.2,3418.1,4.16287]
[1641480156815,0.7391253,3418.2,3418.1,4.00958]
[1641480157215,1.1990353,3418.2,3418.1,4.00958]
[1641480157419,1.95991,3418.2,3411.3,36.04414075]
[1641480157618,43.835,3418.1,3416.1,1.19536268]
[1641480158014,31.155,3418.1,3417.5,2.00479]
[1641480158215,0.384472,3418.0,3417.5,2.00479]
[1641480160719,1.5,3417.6,3415.7,31.8368]
[1641480160920,1.5,3417.4,3415.7,31.8368]
[1641480161118,1.5,3417.4,3415.6,32.2121]
[1641480161320,12.68,3416.8,3415.5,1.19536268]
[1641480161519,1.5,3416.5,3415.5,1.19536268]
[1641480161722,1.5,3415.8,3415.5,1.19536268]
[1641480161919,1.46389093,3415.6,3415.5,1.19536268]
[1641480162118,3.46846453,3416.1,3415.5,1.19536268]